fUSD/lending_fUSD_20240327
["ID","MTS","AMOUNT","RATE_DAILY","PERIOD"]
[320750003,1711545057491,-500.0,0.00055068,120]
[320750004,1711545057501,-500.0,0.00055068,120]
[320750005,1711545057510,-500.0,0.00055068,120]
[320750006,1711545057520,-500.0,0.00055068,120]
[320750007,1711545057529,-516.38,0.00055068,120]
[320750008,1711545057538,-500.0,0.00055068,120]
[320750009,1711545057548,-500.0,0.00055068,120]
[320750010,1711545057557,-500.0,0.00055068,120]
[320750011,1711545057567,-500.0,0.00055068,120]
[320750012,1711545057576,-1961.67,0.00055068,120]
[320750013,1711545057586,-500.0,0.00055068,120]
[320750014,1711545057596,-500.0,0.00055068,120]
[320750015,1711545057605,-820.11,0.00055068,120]
[320750016,1711545057615,-500.0,0.00055068,120]
[320750017,1711545057626,-1615.14,0.00055068,120]
[320750018,1711545057635,-500.0,0.00055068,120]
[320750019,1711545057645,-500.0,0.00055068,120]
[320750020,1711545057655,-500.0,0.00055068,120]
[320750021,1711545057665,-500.0,0.00055068,120]
[320750022,1711545057675,-500.0,0.00055068,120]
[320750023,1711545057685,-1181.42,0.00055068,120]
[320750024,1711545057694,-500.0,0.00055068,120]
[320750025,1711545057704,-500.0,0.00055068,120]
[320750026,1711545057714,-2874.39,0.00055068,120]
[320750027,1711545057723,-500.0,0.00055068,120]
[320750028,1711545057733,-500.0,0.00055068,120]
[320750029,1711545057743,-500.0,0.00055068,120]
[320750030,1711545057752,-500.0,0.00055068,120]
[320750031,1711545057762,-500.0,0.00055068,120]
[320750032,1711545057772,-500.0,0.00055068,120]
[320750033,1711545057781,-500.0,0.00055068,120]
[320750034,1711545057791,-934.73,0.00055068,120]
[320750035,1711545057801,-925.7,0.00055068,120]
[320750036,1711545057810,-500.0,0.00055068,120]
[320750037,1711545057820,-499.97357383,0.00055068,120]
[320750038,1711545057829,-757.64,0.00055068,120]
[320750039,1711545057839,-500.0,0.00055068,120]
[320750040,1711545057849,-500.0,0.00055068,120]
[320750041,1711545057858,-500.0,0.00055068,120]
[320750042,1711545057868,-2559.78,0.00055068,120]
[320750043,1711545057880,-500.0,0.00055068,120]
[320750044,1711545057889,-762.08,0.00055068,60]
[320750045,1711545057898,-500.0,0.00055068,120]
[320750046,1711545057908,-2083.65,0.00055068,120]
[320750047,1711545057917,-533.62,0.00055068,120]
[320750048,1711545057927,-1701.37,0.00055068,120]
[320750049,1711545057936,-500.0,0.00055068,120]
[320750050,1711545057945,-500.0,0.00055068,120]
[320750051,1711545057954,-957.41,0.00055068,120]
[320750052,1711545057964,-2368.37,0.00055068,120]
[320750053,1711545057973,-500.0,0.00055068,120]
[320750054,1711545057982,-500.0,0.00055068,120]
[320750055,1711545057992,-500.0,0.00055068,120]
[320750056,1711545058001,-1114.19,0.00055068,120]
[320750057,1711545058014,-500.0,0.00055068,120]
[320750058,1711545058023,-500.0,0.00055068,120]
[320750059,1711545058032,-500.0,0.00055068,120]
[320750060,1711545058042,-500.0,0.00055068,120]
[320750061,1711545058052,-500.0,0.00055068,120]
[320750062,1711545058061,-500.0,0.00055068,120]
[320750063,1711545058072,-500.0,0.00055068,120]
[320750064,1711545058082,-702.41,0.00055068,120]
[320750065,1711545058093,-845.28,0.00055068,120]
[320750066,1711545058104,-857.93,0.00055068,120]
[320750067,1711545058113,-563.4,0.00055068,120]
[320750068,1711545058125,-500.0,0.00055068,120]
[320750069,1711545058134,-665.89,0.00055068,120]
[320750070,1711545058144,-500.0,0.00055068,120]
[320750071,1711545058153,-500.0,0.00055068,120]
[320750072,1711545058163,-500.0,0.00055068,120]
[320750073,1711545058172,-500.0,0.00055068,120]
[320750074,1711545058182,-500.0,0.00055068,120]
[320750075,1711545058191,-500.0,0.00055068,120]
[320750076,1711545058203,-500.0,0.00055068,120]
[320750077,1711545058213,-500.0,0.00055068,120]
[320750078,1711545058222,-500.0,0.00055068,120]
[320750079,1711545058232,-734.62,0.00055068,120]
[320750080,1711545058241,-1991.27,0.00055068,120]
[320750081,1711545058251,-500.0,0.00055068,120]
[320750082,1711545058261,-500.0,0.00055068,120]
[320750083,1711545058270,-500.0,0.00055068,120]
[320750084,1711545058280,-500.0,0.00055068,120]
[320750085,1711545058290,-982.98,0.00055068,120]
[320750086,1711545058299,-283.81675448,0.00055068,120]
[320750087,1711545058309,-500.0,0.00055068,120]
[320750088,1711545058319,-510.83,0.00055068,120]
[320750089,1711545058328,-500.0,0.00055068,120]
[320750090,1711545058338,-2092.14,0.00055068,120]
[320750091,1711545058348,-500.0,0.00055068,120]
[320750092,1711545058357,-589.59,0.00055068,120]
[320750093,1711545058366,-500.0,0.00055068,120]
[320750094,1711545058378,-500.0,0.00055068,120]
[320750095,1711545058388,-500.0,0.00055068,120]
[320750096,1711545058398,-500.0,0.00055068,120]
[320750097,1711545058408,-500.0,0.00055068,120]
[320750098,1711545058418,-500.0,0.00055068,120]
[320750099,1711545058427,-1186.03,0.00055068,120]
[320750100,1711545058437,-623.3,0.00055068,30]
[320750101,1711545058447,-500.0,0.00055068,120]
[320750102,1711545058457,-688.84,0.00055068,120]
[320750103,1711545058467,-500.0,0.00055068,120]
[320750104,1711545058477,-500.0,0.00055068,120]
[320750105,1711545058487,-500.0,0.00055068,120]
[320750106,1711545058496,-500.0,0.00055068,120]
[320750107,1711545058507,-519.0,0.00055068,120]
[320750108,1711545058516,-504.22494631,0.00055068,120]
[320750109,1711545058527,-639.78,0.00055068,120]
[320750110,1711545058537,-510.75772007,0.00055068,120]
[320750111,1711545058546,-500.0,0.00055068,120]
[320750112,1711545058556,-500.0,0.00055068,120]
[320750113,1711545058565,-500.0,0.00055068,120]
[320750114,1711545058574,-676.45,0.00055068,120]
[320750115,1711545058584,-500.0,0.00055068,120]
[320750116,1711545058594,-512.65630097,0.00055068,120]
[320750117,1711545058603,-1021.21,0.00055068,120]
[320750118,1711545058613,-500.0,0.00055068,120]
[320750119,1711545058622,-694.01,0.00055068,120]
[320750120,1711545058633,-500.0,0.00055068,120]
[320750121,1711545058643,-500.0,0.00055068,120]
[320750122,1711545058652,-602.67,0.00055068,120]
[320750123,1711545058662,-500.0,0.00055068,120]
[320750124,1711545058671,-500.0,0.00055068,120]
[320750125,1711545058680,-187.74128744,0.00055068,120]
[320750126,1711545058689,-500.0,0.00055068,120]
[320750127,1711545058698,-500.0,0.00055068,120]
[320750128,1711545058708,-500.0,0.00055068,120]
[320750129,1711545058717,-500.0,0.00055068,120]
[320750130,1711545058727,-636.28,0.00055068,120]
[320750131,1711545058736,-500.0,0.00055068,120]
[320750132,1711545058746,-571.87,0.00055068,120]
[320750133,1711545058756,-935.53,0.00055068,120]
[320750134,1711545058765,-500.0,0.00055068,120]
[320750135,1711545058775,-500.0,0.00055068,120]
[320750136,1711545058784,-1161.12,0.00055068,120]
[320750137,1711545058794,-500.0,0.00055068,120]
[320750138,1711545058803,-500.0,0.00055068,120]
[320750139,1711545058812,-500.0,0.00055068,120]
[320750140,1711545058821,-500.0,0.00055068,120]
[320750141,1711545058830,-500.0,0.00055068,120]
[320750142,1711545058840,-500.0,0.00055068,120]
[320750143,1711545058851,-500.0,0.00055068,120]
[320750144,1711545058860,-500.0,0.00055068,120]
[320750145,1711545058870,-1152.46,0.00055068,120]
[320750146,1711545058881,-509.2,0.00055068,120]
[320750147,1711545058891,-500.0,0.00055068,120]
[320750148,1711545058900,-793.3,0.00055068,120]
[320750149,1711545058910,-500.0,0.00055068,120]
[320750150,1711545058919,-500.0,0.00055068,120]
[320750151,1711545058928,-669.53,0.00055068,120]
[320750152,1711545058937,-500.0,0.00055068,120]
[320750153,1711545058947,-807.63,0.00055068,120]
[320750154,1711545058956,-500.0,0.00055068,120]
[320750155,1711545058966,-500.0,0.00055068,120]
[320750156,1711545058975,-500.0,0.00055068,120]
[320750157,1711545058984,-701.89,0.00055068,120]
[320750158,1711545058993,-663.69,0.00055068,120]
[320750159,1711545059003,-794.84,0.00055068,120]
[320750160,1711545059015,-551.28,0.00055068,120]
[320750161,1711545059024,-500.0,0.00055068,120]
[320750162,1711545059033,-454.32742962,0.00055068,120]
[320750163,1711545059042,-813.9,0.00055068,120]
[320750164,1711545059051,-500.0,0.00055068,120]
[320750165,1711545059062,-500.0,0.00055068,120]
[320750166,1711545059072,-500.0,0.00055068,120]
[320750167,1711545059081,-896.96,0.00055068,120]
[320750168,1711545059091,-500.0,0.00055068,120]
[320750169,1711545059100,-500.0,0.00055068,120]
[320750170,1711545059109,-500.0,0.00055068,120]
[320750171,1711545059118,-500.0,0.00055068,120]
[320750172,1711545059130,-500.0,0.00055068,120]
[320750173,1711545059139,-500.0,0.00055068,120]
[320750174,1711545059148,-644.56,0.00055068,120]
[320750175,1711545059157,-500.0,0.00055068,120]
[320750176,1711545059166,-1057.11,0.00055068,120]
[320750177,1711545059176,-503.38,0.00055068,120]
[320750178,1711545059185,-360.78982427,0.00055068,120]
[320750179,1711545059194,-500.0,0.00055068,120]
[320750180,1711545059203,-521.68,0.00055068,120]
[320750181,1711545059212,-1089.53,0.00055068,120]
[320750182,1711545059222,-1006.34,0.00055068,120]
[320750183,1711545059231,-500.0,0.00055068,120]
[320750184,1711545059239,-500.0,0.00055068,120]
[320750185,1711545059248,-500.0,0.00055068,120]
[320750186,1711545059257,-599.01,0.00055068,120]
[320750187,1711545059267,-500.0,0.00055068,120]
[320750188,1711545059276,-500.0,0.00055068,120]
[320750189,1711545059285,-500.0,0.00055068,120]
[320750190,1711545059295,-500.0,0.00055068,120]
[320750191,1711545059305,-500.0,0.00055068,120]
[320750192,1711545059315,-753.3,0.00055068,120]
[320750193,1711545059324,-808.54,0.00055068,120]
[320750194,1711545059333,-500.0,0.00055068,120]
[320750195,1711545059342,-635.79,0.00055068,120]
[320750196,1711545059351,-606.72,0.00055068,120]
[320750197,1711545059360,-500.0,0.00055068,120]
[320750198,1711545059369,-500.0,0.00055068,120]
[320750199,1711545059379,-728.45,0.00055068,120]
[320750200,1711545059388,-2145.05,0.00055068,120]
[320750201,1711545059397,-1062.14,0.00055068,120]
[320750202,1711545059406,-500.0,0.00055068,120]
[320750203,1711545059415,-632.09,0.00055068,120]
[320750204,1711545059424,-500.0,0.00055068,120]
[320750205,1711545059433,-523.59,0.00055068,120]
[320750206,1711545059442,-500.0,0.00055068,120]
[320750207,1711545059451,-889.55,0.00055068,120]
[320750208,1711545059460,-415.35,0.00055068,120]
[320750209,1711545059469,-500.0,0.00055068,120]
[320750210,1711545059478,-500.0,0.00055068,120]
[320750211,1711545059488,-558.02,0.00055068,120]
[320750212,1711545059497,-500.0,0.00055068,120]
[320750213,1711545059507,-500.0,0.00055068,120]
[320750214,1711545059518,-951.16,0.00055068,120]
[320750215,1711545059528,-1984.5,0.00055068,120]
[320750216,1711545059536,-500.0,0.00055068,120]
[320750217,1711545059545,-500.0,0.00055068,120]
[320750218,1711545059555,-888.0,0.00055068,120]
[320750219,1711545059565,-500.0,0.00055068,120]
[320750220,1711545059574,-500.0,0.00055068,120]
[320750221,1711545059583,-671.68,0.00055068,120]
[320750222,1711545059592,-1096.53,0.00055068,120]
[320750223,1711545059601,-500.0,0.00055068,120]
[320750224,1711545059610,-500.0,0.00055068,120]
[320750225,1711545059619,-500.0,0.00055068,120]
[320750226,1711545059632,-1397.6,0.00055068,120]
[320750227,1711545059641,-1269.92,0.00055068,120]
[320750228,1711545059650,-755.05,0.00055068,120]
[320750229,1711545059659,-500.0,0.00055068,120]
[320750230,1711545059668,-500.0,0.00055068,120]
[320750231,1711545059677,-642.92,0.00055068,120]
[320750232,1711545059686,-746.9,0.00055068,120]
[320750233,1711545059696,-500.0,0.00055068,120]
[320750234,1711545059705,-500.0,0.00055068,120]
[320750235,1711545059713,-500.0,0.00055068,120]
[320750236,1711545059723,-500.0,0.00055068,120]
[320750237,1711545059734,-839.93,0.00055068,120]
[320750238,1711545059744,-500.0,0.00055068,120]
[320750239,1711545059916,-500.0,0.00055068,120]
[320750240,1711545059926,-544.95,0.00055068,120]
[320750241,1711545059936,-500.0,0.00055068,120]
[320750242,1711545059946,-2294.24,0.00055068,120]
[320750243,1711545059955,-610.95,0.00055068,120]
[320750244,1711545059966,-500.0,0.00055068,120]
[320750245,1711545059976,-500.0,0.00055068,120]
[320750246,1711545059986,-500.0,0.00055068,120]
[320750247,1711545059996,-500.0,0.00055068,120]
[320750248,1711545060006,-837.65,0.00055068,120]
[320750249,1711545060017,-500.0,0.00055068,120]
[320750250,1711545060027,-500.0,0.00055068,120]
[320750251,1711545060037,-500.0,0.00055068,7]
[320750252,1711545060046,-671.0,0.00055068,120]
[320750253,1711545060058,-643.05,0.00055068,120]
[320750254,1711545060068,-500.0,0.00055068,120]
[320750255,1711545060078,-1349.43,0.00055068,120]
[320750256,1711545060087,-785.43,0.00055068,120]
[320750257,1711545060097,-627.15,0.00055068,120]
[320750258,1711545060107,-500.0,0.00055068,120]
[320750259,1711545060116,-500.0,0.00055068,120]
[320750260,1711545060128,-563.26,0.00055068,120]
[320750261,1711545060138,-500.0,0.00055068,2]
[320750262,1711545060149,-500.0,0.00055068,120]
[320750263,1711545060158,-500.0,0.00055068,120]
[320750264,1711545060168,-1041.1,0.00055068,120]
[320750265,1711545060178,-500.0,0.00055068,120]
[320750266,1711545060188,-822.73,0.00055068,120]
[320750267,1711545060197,-500.0,0.00055068,120]
[320750268,1711545060207,-500.0,0.00055068,120]
[320750269,1711545060216,-500.0,0.00055068,120]
[320750270,1711545060238,-1945.56,0.00055068,120]
[320750271,1711545060249,-500.0,0.00055068,120]
[320750272,1711545060260,-500.0,0.00055068,120]
[320750273,1711545060270,-500.0,0.00055068,120]
[320750274,1711545060281,-500.0,0.00055068,120]
[320750275,1711545060292,-500.0,0.00055068,120]
[320750276,1711545060303,-500.0,0.00055068,120]
[320750277,1711545060314,-903.23,0.00055068,120]
[320750278,1711545060324,-500.0,0.00055068,120]
[320750279,1711545060335,-500.0,0.00055068,120]
[320750280,1711545060345,-766.51,0.00055068,120]
[320750281,1711545060356,-633.14,0.00055068,120]
[320750282,1711545060366,-500.0,0.00055068,120]
[320750283,1711545060378,-500.0,0.00055068,120]
[320750284,1711545060409,-500.0,0.00055068,120]
[320750285,1711545060455,-500.0,0.00055068,120]
[320750286,1711545060466,-500.0,0.00055068,120]
[320750287,1711545060476,-500.0,0.00055068,120]
[320750288,1711545060487,-500.0,0.00055068,120]
[320750289,1711545060497,-585.06,0.00055068,120]
[320750290,1711545060507,-791.32,0.00055068,30]
[320750291,1711545060517,-500.0,0.00055068,120]
[320750292,1711545060527,-500.0,0.00055068,120]
[320750293,1711545060537,-500.0,0.00055068,120]
[320750294,1711545060548,-500.0,0.00055068,120]
[320750295,1711545060558,-500.0,0.00055068,120]
[320750296,1711545060568,-674.64,0.00055068,120]
[320750297,1711545060578,-500.0,0.00055068,120]
[320750298,1711545060588,-586.28,0.00055068,120]
[320750299,1711545060597,-750.38,0.00055068,120]
[320750300,1711545060607,-500.0,0.00055068,120]
[320750301,1711545060617,-1000.0,0.00055068,120]
[320750302,1711545060629,-736.03,0.00055068,120]
[320750303,1711545060639,-1420.19,0.00055068,120]
[320750304,1711545060648,-504.09997288,0.00055068,120]
[320750305,1711545060658,-669.83,0.00055068,120]
[320750306,1711545060668,-500.0,0.00055068,120]
[320750307,1711545060678,-709.74,0.00055068,120]
[320750308,1711545060688,-500.0,0.00055068,120]
[320750309,1711545060698,-773.7,0.00055068,120]
[320750310,1711545060707,-500.0,0.00055068,120]
[320750311,1711545060717,-500.0,0.00055068,120]
[320750312,1711545060726,-500.0,0.00055068,120]
[320750313,1711545060736,-797.13,0.00055068,120]
[320750314,1711545060747,-500.0,0.00055068,120]
[320750315,1711545060757,-500.0,0.00055068,120]
[320750316,1711545060768,-635.43,0.00055068,120]
[320750317,1711545060778,-788.5,0.00055068,120]
[320750318,1711545060788,-500.0,0.00055068,120]
[320750319,1711545060797,-558.92,0.00055068,120]
[320750320,1711545060807,-562.65,0.00055068,120]
[320750321,1711545060817,-500.0,0.00055068,120]
[320750322,1711545060831,-417.88,0.00055068,120]
[320750323,1711545060840,-506.76421852,0.00055068,120]
[320750324,1711545060850,-500.0,0.00055068,120]
[320750325,1711545060860,-522.89,0.00055068,120]
[320750326,1711545060869,-2029.21,0.00055068,120]
[320750327,1711545060883,-500.0,0.00055068,120]
[320750328,1711545060892,-500.0,0.00055068,120]
[320750329,1711545060902,-500.0,0.00055068,120]
[320750330,1711545060911,-500.0,0.00055068,120]
[320750331,1711545060920,-500.0,0.00055068,120]
[320750332,1711545060930,-500.0,0.00055068,120]
[320750333,1711545060940,-500.0,0.00055068,120]
[320750334,1711545060950,-500.0,0.00055068,120]
[320750335,1711545060959,-500.0,0.00055068,120]
[320750336,1711545060970,-500.0,0.00055068,120]
[320750337,1711545060979,-1002.56,0.00055068,120]
[320750338,1711545060989,-564.14,0.00055068,120]
[320750339,1711545061002,-500.0,0.00055068,120]
[320750340,1711545061017,-696.63,0.00055068,120]
[320750341,1711545061033,-500.0,0.00055068,120]
[320750342,1711545061044,-500.0,0.00055068,120]
[320750343,1711545061054,-500.0,0.00055068,120]
[320750344,1711545061064,-500.0,0.00055068,120]
[320750345,1711545061077,-500.0,0.00055068,120]
[320750346,1711545061087,-1831.21,0.00055068,120]
[320750347,1711545061097,-417.07,0.00055068,120]
[320750348,1711545061107,-500.0,0.00055068,120]
[320750349,1711545061117,-516.12787952,0.00055068,120]
[320750350,1711545061130,-500.0,0.00055068,120]
[320750351,1711545061140,-500.0,0.00055068,120]
[320750352,1711545061149,-500.0,0.00055068,120]
[320750353,1711545061159,-500.0,0.00055068,120]
[320750354,1711545061170,-500.0,0.00055068,120]
[320750355,1711545061179,-500.0,0.00055068,120]
[320750356,1711545061189,-410.33589028,0.00055068,120]
[320750357,1711545061199,-500.0,0.00055068,120]
[320750358,1711545061210,-500.0,0.00055068,120]
[320750359,1711545061220,-500.0,0.00055068,120]
[320750360,1711545061230,-762.75,0.00055068,120]
[320750361,1711545061240,-200.0,0.00055068,120]
[320750362,1711545061249,-887.04,0.00055068,120]
[320750363,1711545061259,-500.0,0.00055068,120]
[320750364,1711545061269,-500.0,0.00055068,120]
[320750365,1711545061281,-2280.42,0.00055068,120]
[320750366,1711545061291,-500.0,0.00055068,120]
[320750367,1711545061301,-500.0,0.00055068,120]
[320750368,1711545061310,-761.49,0.00055068,120]
[320750369,1711545061322,-666.95,0.00055068,120]
[320750370,1711545061331,-572.49,0.00055068,120]
[320750371,1711545061341,-989.63,0.00055068,120]
[320750372,1711545061351,-2038.73,0.00055068,120]
[320750373,1711545061361,-500.0,0.00055068,120]
[320750374,1711545061370,-500.0,0.00055068,120]
[320750375,1711545061383,-966.04,0.00055068,120]
[320750376,1711545061392,-7410.27,0.00055068,120]
[320750377,1711545061403,-591.2,0.00055068,120]
[320750378,1711545061414,-1021.61,0.00055068,120]
[320750379,1711545061424,-505.92570365,0.00055068,120]
[320750380,1711545061434,-917.72,0.00055068,120]
[320750381,1711545061446,-1185.67,0.00055068,120]
[320750382,1711545061456,-4131.44,0.00055068,120]
[320750383,1711545061466,-500.0,0.00055068,120]
[320750384,1711545061477,-500.0,0.00055068,120]
[320750385,1711545061488,-500.0,0.00055068,120]
[320750386,1711545061499,-1840.41,0.00055068,120]
[320750387,1711545061509,-511.69013321,0.00055068,120]
[320750388,1711545061519,-2021.69,0.00055068,120]
[320750389,1711545061529,-500.0,0.00055068,120]
[320750390,1711545061538,-500.0,0.00055068,120]
[320750391,1711545061551,-3117.06,0.00055068,120]
[320750392,1711545061561,-1046.06,0.00055068,120]
[320750393,1711545061571,-881.25,0.00055068,120]
[320750394,1711545061581,-500.0,0.00055068,120]
[320750395,1711545061591,-743.64,0.00055068,120]
[320750396,1711545061602,-502.0,0.00055068,120]
[320750397,1711545061611,-6836.54,0.00055068,120]
[320750398,1711545061621,-500.0,0.00055068,120]
[320750399,1711545061634,-2764.61,0.00055068,120]
[320750400,1711545061643,-804.84,0.00055068,120]
[320750401,1711545061653,-1965.13,0.00055068,120]
[320750402,1711545061662,-500.0,0.00055068,120]
[320750403,1711545061672,-4896.21,0.00055068,120]
[320750404,1711545061681,-501.09,0.00055068,120]
[320750405,1711545061691,-500.0,0.00055068,120]
[320750406,1711545061701,-797.84,0.00055068,120]
[320750407,1711545061711,-500.0,0.00055068,120]
[320750408,1711545061721,-1043.28,0.00055068,120]
[320750409,1711545061731,-1995.94,0.00055068,120]
[320750410,1711545061741,-500.0,0.00055068,120]
[320750411,1711545061751,-500.0,0.00055068,120]
[320750412,1711545061762,-500.0,0.00055068,120]
[320750413,1711545061772,-500.0,0.00055068,120]
[320750414,1711545061782,-2893.0,0.00055068,120]
[320750415,1711545061792,-15249.71,0.00055068,120]
[320750416,1711545061802,-500.0,0.00055068,120]
[320750417,1711545061813,-558.52,0.00055068,120]
[320750418,1711545061823,-500.0,0.00055068,120]
[320750419,1711545061832,-500.0,0.00055068,120]
[320750420,1711545061842,-75992.14,0.00055068,120]
[320750421,1711545061852,-500.0,0.00055068,120]
[320750422,1711545061862,-3596.62,0.00055068,120]
[320750423,1711545061872,-500.0,0.00055068,120]
[320750424,1711545061885,-500.0,0.00055068,120]
[320750425,1711545061895,-3332.62,0.00055068,120]
[320750426,1711545061904,-500.0,0.00055068,120]
[320750427,1711545061914,-4816.18,0.00055068,120]
[320750428,1711545061924,-1863.41,0.00055068,120]
[320750429,1711545061934,-500.0,0.00055068,120]
[320750430,1711545061944,-7622.66,0.00055068,120]
[320750431,1711545061954,-1308.14,0.00055068,120]
[320750432,1711545061964,-500.0,0.00055068,120]
[320750433,1711545061973,-2387.05,0.00055068,120]
[320750434,1711545061983,-6076.26,0.00055068,120]
[320750435,1711545061993,-500.0,0.00055068,120]
[320750436,1711545062002,-1319.68,0.00055068,120]
[320750437,1711545062013,-500.0,0.00055068,120]
[320750438,1711545062023,-500.0,0.00055068,120]
[320750439,1711545062032,-5368.72,0.00055068,120]
[320750440,1711545062042,-500.0,0.00055068,120]
[320750441,1711545062051,-5144.72,0.00055068,120]
[320750442,1711545062063,-500.0,0.00055068,120]
[320750443,1711545062072,-2956.7,0.00055068,120]
[320750444,1711545062085,-500.0,0.00055068,120]
[320750445,1711545062094,-989.52,0.00055068,120]
[320750446,1711545062104,-500.0,0.00055068,120]
[320750447,1711545062115,-518.82,0.00055068,120]
[320750448,1711545062127,-299.47626273,0.00055068,120]
[320750449,1711545062138,-3326.27,0.00055068,120]
[320750450,1711545062149,-500.0,0.00055068,120]
[320750451,1711545062159,-3041.64,0.00055068,120]
[320750452,1711545062169,-20346.3,0.00055068,120]
[320750453,1711545062179,-500.0,0.00055068,120]
[320750454,1711545062189,-9005.78,0.00055068,120]
[320750455,1711545062199,-2619.34,0.00055068,120]
[320750456,1711545062208,-641.52,0.00055068,120]
[320750457,1711545062218,-500.0,0.00055068,120]
[320750458,1711545062229,-500.0,0.00055068,120]
[320750459,1711545062239,-500.0,0.00055068,120]
[320750460,1711545062248,-4819.76,0.00055068,120]
[320750461,1711545062258,-194.51097774,0.00055068,120]
[320750462,1711545062269,-595.36,0.00055068,120]
[320750463,1711545062278,-4918.59,0.00055068,120]
[320750464,1711545062288,-3188.02,0.00055068,120]
[320750465,1711545062298,-500.0,0.00055068,120]
[320750466,1711545062308,-3264.58,0.00055068,120]
[320750467,1711545062317,-2720.41,0.00055068,120]
[320750468,1711545062328,-1357.49,0.00055068,120]
[320750469,1711545062338,-616.58,0.00055068,120]
[320750470,1711545062348,-500.0,0.00055068,120]
[320750471,1711545062362,-611.94,0.00055068,120]
[320750472,1711545062372,-511.18,0.00055068,120]
[320750473,1711545062388,-500.0,0.00055068,120]
[320750474,1711545062399,-500.0,0.00055068,120]
[320750475,1711545062411,-1000.0,0.00055068,14]
[320750476,1711545062422,-5095.68,0.00055068,120]
[320750477,1711545062435,-4056.72,0.00055068,120]
[320750478,1711545062447,-8837.31,0.00055068,120]
[320750479,1711545062461,-1076.16,0.00055068,120]
[320750480,1711545062473,-2391.62,0.00055068,120]
[320750481,1711545062484,-500.0,0.00055068,120]
[320750482,1711545062495,-528.46,0.00055068,120]
[320750483,1711545062506,-1376.44,0.00055068,120]
[320750484,1711545062516,-2516.81,0.00055068,120]
[320750485,1711545062528,-41305.17,0.00055068,120]
[320750486,1711545062539,-3046.15,0.00055068,120]
[320750487,1711545062549,-835.27,0.00055068,120]
[320750488,1711545062559,-5486.9,0.00055068,120]
[320750489,1711545062571,-2405.09,0.00055068,120]
[320750490,1711545062581,-500.0,0.00055068,120]
[320750491,1711545062592,-1426.57,0.00055068,120]
[320750492,1711545062602,-2003.76,0.00055068,120]
[320750493,1711545062612,-5722.98,0.00055068,120]
[320750494,1711545062623,-844.73,0.00055068,120]
[320750495,1711545062638,-993.46,0.00055068,120]
[320750496,1711545062649,-6090.95,0.00055068,120]
[320750497,1711545062660,-500.0,0.00055068,120]
[320750498,1711545062671,-1283.48,0.00055068,120]
[320750499,1711545062682,-299.37892799,0.00055068,120]
[320750500,1711545062693,-985.29,0.00055068,120]
[320750501,1711545062703,-500.0,0.00055068,120]
[320750502,1711545062715,-671.24,0.00055068,120]